bitfinex/quotes_BTCUSD_20250218
["timestamp","ask_amount","ask_price","bid_price","bid_amount"]
[1739893719159,0.00078177,95645.0,95644.0,0.25933465]
[1739893719371,0.00078177,95645.0,95644.0,0.26440455]
[1739893720499,0.00078177,95645.0,95644.0,0.28740455]
[1739893720900,0.00078177,95645.0,95644.0,0.26440455]
[1739893722657,0.00078177,95645.0,95644.0,0.26740455]
[1739893723861,0.00078177,95645.0,95644.0,0.0080699]
[1739893725454,0.00078177,95645.0,95644.0,0.0050699]
[1739893725863,0.00078177,95645.0,95644.0,0.0070699]
[1739893726728,0.00078177,95645.0,95644.0,0.0050699]
[1739893727147,0.00078177,95645.0,95644.0,0.0090699]
[1739893727365,0.00078177,95645.0,95644.0,0.112619]
[1739893727805,0.00078177,95645.0,95644.0,0.11157355]
[1739893728021,0.00078177,95645.0,95644.0,0.13457355]
[1739893728236,0.00078177,95645.0,95644.0,0.29140455]
[1739893728882,0.00078177,95645.0,95644.0,0.37400455]
[1739893730023,0.00078177,95645.0,95644.0,0.39527841]
[1739893730456,0.00078177,95645.0,95644.0,0.39127841]
[1739893731514,0.00078177,95645.0,95644.0,0.37000455]
[1739893732002,0.00078177,95645.0,95644.0,0.37500455]
[1739893732835,0.00078177,95645.0,95644.0,0.37025487]
[1739893733257,0.00078177,95645.0,95644.0,0.37425487]
[1739893733916,0.00078177,95645.0,95644.0,0.09192022]
[1739893734137,0.00078177,95645.0,95644.0,0.00932022]
[1739893734785,0.00078177,95645.0,95644.0,0.16615122]
[1739893734992,0.00078177,95645.0,95644.0,0.20367774]
[1739893735202,0.00078177,95645.0,95644.0,0.19967774]
[1739893735413,0.00078177,95645.0,95644.0,0.30218139]
[1739893735631,0.00078177,95645.0,95644.0,0.326344]
[1739893735755,0.00078177,95645.0,95644.0,0.30618139]
[1739893735980,0.00078177,95645.0,95644.0,0.30218139]
[1739893736383,0.00078177,95645.0,95644.0,0.30618139]
[1739893736803,0.00078177,95645.0,95644.0,0.38658139]
[1739893741110,0.00078177,95645.0,95644.0,0.43588139]
[1739893743235,0.00078177,95645.0,95644.0,0.58588139]
[1739893743442,7.7e-07,95645.0,95644.0,0.63839526]
[1739893743878,0.0009818,95676.0,95644.0,0.31156426]
[1739893744085,0.00111403,95676.0,95651.0,0.209093]
[1739893744351,0.00111403,95676.0,95652.0,0.31159365]
[1739893744570,0.00111403,95676.0,95675.0,0.15678]
[1739893744984,0.00111403,95676.0,95675.0,0.16203883]
[1739893745631,0.00111403,95676.0,95675.0,0.00525883]
[1739893746044,0.00111403,95676.0,95675.0,0.16203883]
[1739893746249,0.00111403,95676.0,95675.0,0.19914701]
[1739893746463,0.00013223,95676.0,95675.0,0.19914701]
[1739893747552,0.00013223,95676.0,95675.0,0.00525883]
[1739893747978,0.00013223,95676.0,95661.0,0.156803]
[1739893748186,0.51595123,95676.0,95675.0,0.00525883]
[1739893748391,0.15013223,95676.0,95653.0,0.209089]
[1739893748605,0.156792,95668.0,95655.0,0.156811]
[1739893748821,0.156794,95667.0,95654.0,0.16210668]
[1739893749058,0.15,95669.0,95656.0,0.00528841]
[1739893749266,0.15,95669.0,95656.0,0.209082]
[1739893749480,0.15,95669.0,95655.0,0.00529004]
[1739893749481,0.17117322,95669.0,95655.0,0.00529004]
[1739893749691,0.08346766,95668.0,95641.0,0.156834]
[1739893749901,0.14712324,95650.0,95631.0,0.0483]
[1739893750121,0.14712324,95650.0,95635.0,0.10250365]
[1739893750344,0.15683,95645.0,95635.0,0.10250365]
[1739893750551,0.14712324,95650.0,95624.0,0.0754]
[1739893750812,0.14712324,95650.0,95629.0,0.10250365]
[1739893751034,0.0616,95655.0,95640.0,0.156837]
[1739893751248,0.02012472,95650.0,95629.0,0.10250365]
[1739893751462,0.0616,95655.0,95629.0,0.10250365]
[1739893751908,0.06173218,95655.0,95629.0,0.10250365]
[1739893752143,0.156822,95650.0,95635.0,0.156845]
[1739893752529,0.156822,95650.0,95629.0,0.10267385]
[1739893752734,0.156822,95650.0,95635.0,0.156845]
[1739893752934,0.21173218,95655.0,95631.0,0.209137]
[1739893753153,0.02032019,95650.0,95648.0,0.156824]
[1739893753356,0.00013218,95655.0,95653.0,0.156816]
[1739893753547,0.00113208,95655.0,95653.0,0.156816]
[1739893753751,0.00013218,95655.0,95644.0,0.0754]
[1739893753959,0.00013218,95655.0,95645.0,0.00754]
[1739893754369,0.00013218,95655.0,95644.0,0.10250365]
[1739893754977,0.00013218,95655.0,95634.0,0.209128]
[1739893755215,0.00013218,95655.0,95645.0,0.00532455]
[1739893755216,0.22091363,95650.0,95645.0,0.00532455]
[1739893755421,0.156852,95632.0,95629.0,0.0001702]
[1739893755628,0.15,95639.0,95629.0,0.0001702]
[1739893755834,0.156851,95632.0,95630.0,0.00534909]
[1739893756046,0.156843,95637.0,95629.0,0.0001702]
[1739893756249,0.209124,95637.0,95629.0,0.0001702]
[1739893756474,0.15,95639.0,95629.0,0.0001702]
[1739893756702,0.156846,95635.0,95629.0,0.0001702]
[1739893756913,0.15,95639.0,95629.0,0.0001702]
[1739893757167,0.15,95640.0,95630.0,0.156854]
[1739893757374,0.15,95640.0,95629.0,0.0001702]
[1739893757555,0.15,95640.0,95631.0,0.00535423]
[1739893757872,0.15,95640.0,95629.0,0.0001702]
[1739893758036,0.0467,95646.0,95629.0,0.0001702]
[1739893758259,0.0467,95646.0,95633.0,0.156849]
[1739893758418,0.1967,95646.0,95633.0,0.156849]
[1739893758614,0.1967,95646.0,95634.0,0.00534858]
[1739893758822,0.353528,95646.0,95634.0,0.00534858]
[1739893759020,0.156836,95641.0,95634.0,0.00534858]
[1739893759237,0.156839,95639.0,95629.0,0.0001702]
[1739893759443,0.15,95638.0,95630.0,0.00535513]
[1739893759882,0.15,95638.0,95630.0,0.03715363]
[1739893760091,0.15,95638.0,95631.0,0.00535371]
[1739893760722,0.0467,95646.0,95631.0,0.00535371]
[1739893760723,0.156851,95632.0,95631.0,0.00535371]
[1739893760930,0.15,95639.0,95629.0,0.0001702]
[1739893761130,0.156842,95638.0,95630.0,0.001]
[1739893761377,0.15,95639.0,95630.0,0.00635534]
[1739893761378,0.156843,95637.0,95630.0,0.00635534]
[1739893761585,0.15,95639.0,95630.0,0.001]
[1739893761741,0.306852,95631.0,95630.0,0.001]
[1739893762111,0.15,95631.0,95630.0,0.001]
[1739893762693,0.15,95631.0,95629.0,0.0001702]
[1739893762824,0.15,95637.0,95629.0,0.0001702]
[1739893763029,0.15,95635.0,95629.0,0.0001702]
[1739893763645,0.15,95635.0,95631.0,0.001]
[1739893763849,0.15,95635.0,95629.0,0.0001702]
[1739893764090,0.156846,95635.0,95629.0,0.0001702]
[1739893764326,0.15,95633.0,95629.0,0.0001702]
[1739893764706,0.156854,95630.0,95629.0,0.0021702]
[1739893765313,0.218454,95630.0,95629.0,0.0021702]
[1739893766320,0.218454,95630.0,95629.0,0.0001702]
[1739893766702,0.218454,95630.0,95629.0,0.0031702]
[1739893767100,0.02120783,95638.0,95629.0,0.0001702]
[1739893767333,0.003,95630.0,95623.0,0.286602]
[1739893767531,0.003,95630.0,95624.0,0.0286602]
[1739893767746,0.156844,95637.0,95624.0,0.00538227]
[1739893767937,0.22091363,95640.0,95624.0,0.00538227]
[1739893768136,0.003,95630.0,95627.0,0.156858]
[1739893768402,0.003,95630.0,95625.0,0.00538063]
[1739893768610,0.003,95630.0,95628.0,0.00537572]
[1739893768741,0.003,95630.0,95629.0,0.00828257]
[1739893768938,0.003,95630.0,95629.0,0.01365666]
[1739893769390,0.003,95630.0,95629.0,0.00537409]
[1739893769594,0.156841,95639.0,95629.0,0.00537409]
[1739893769764,0.43003263,95640.0,95623.0,0.07745]
[1739893769765,0.22091363,95640.0,95623.0,0.07745]
[1739893769979,0.37775163,95640.0,95630.0,0.00237245]
[1739893770200,0.22091363,95640.0,95631.0,0.156852]
[1739893770374,0.30683,95645.0,95631.0,0.0365994]
[1739893770574,0.15,95645.0,95632.0,0.00729894]
[1739893770781,0.22091363,95642.0,95624.0,0.0473]
[1739893771212,0.37774763,95642.0,95628.0,0.156856]
[1739893771408,0.37774763,95642.0,95625.0,0.00731612]
[1739893771409,0.15684,95639.0,95625.0,0.00731612]
[1739893771609,0.22091363,95642.0,95629.0,0.0073063]
[1739893771778,0.37774863,95642.0,95629.0,0.156855]
[1739893771966,0.22091363,95642.0,95631.0,0.156852]
[1739893772405,0.22091363,95642.0,95632.0,0.16414894]
[1739893772605,0.209095,95651.0,95632.0,0.00729894]
[1739893772606,0.14727757,95650.0,95632.0,0.00729894]
[1739893772803,0.156823,95649.0,95633.0,0.209132]
[1739893773057,0.156825,95648.0,95635.0,0.156844]
[1739893773259,0.001,95645.0,95634.0,0.02893712]
[1739893773490,0.001,95645.0,95636.0,0.00728912]
[1739893773686,0.30410857,95644.0,95635.0,0.00729158]
[1739893773863,0.14727757,95644.0,95637.0,0.00728667]
[1739893774091,0.20911,95643.0,95636.0,0.00728912]
[1739893774205,0.14727757,95644.0,95625.0,0.209148]
[1739893774421,0.14727757,95644.0,95626.0,0.00731367]
[1739893774621,0.14727757,95644.0,95624.0,0.0473]
[1739893774852,0.156825,95648.0,95625.0,0.04070682]
[1739893775046,0.14727757,95650.0,95632.0,0.365983]
[1739893775268,0.14727757,95640.0,95633.0,0.00729649]
[1739893775650,0.156843,95637.0,95633.0,0.00729649]
[1739893775853,0.156843,95637.0,95625.0,0.0333907]
[1739893776061,0.15685,95633.0,95623.0,0.07745]
[1739893776265,0.14727757,95633.0,95626.0,0.00731367]
[1739893776466,0.156858,95628.0,95614.0,0.079]
[1739893776669,0.14727757,95630.0,95614.0,0.079]
[1739893776869,0.14727757,95630.0,95615.0,0.01776073]
[1739893777076,0.15,95639.0,95615.0,0.01286702]
[1739893777299,0.15,95639.0,95628.0,0.156857]
[1739893777589,0.0009802,95639.0,95616.0,0.00734082]
[1739893777790,0.14827757,95640.0,95629.0,0.00730891]
[1739893777985,0.14727757,95640.0,95623.0,0.0001701]
[1739893778188,0.01638791,95646.0,95630.0,0.00730645]
[1739893778364,0.01638791,95646.0,95623.0,0.0001701]
[1739893778365,0.001,95639.0,95623.0,0.0001701]
[1739893778573,0.001,95639.0,95628.0,0.156857]
[1739893778792,0.001,95639.0,95628.0,0.19347471]
[1739893779132,0.001,95639.0,95629.0,0.00730891]
[1739893779934,0.14727757,95640.0,95629.0,0.00730891]
[1739893780415,0.156854,95630.0,95629.0,0.00730891]
[1739893780623,0.156864,95624.0,95623.0,0.0001701]
[1739893780850,0.156861,95626.0,95623.0,0.0001701]
[1739893781067,0.156859,95628.0,95623.0,0.0001701]
[1739893781271,0.14727757,95633.0,95623.0,0.0001701]
[1739893781449,0.472626,95632.0,95623.0,0.0001701]
[1739893781655,0.001,95630.0,95623.0,0.0001701]
[1739893781807,0.157854,95630.0,95623.0,0.00061087]
[1739893782002,0.001,95630.0,95624.0,0.00731586]
[1739893782237,0.001,95630.0,95623.0,0.00061087]
[1739893782657,0.001,95630.0,95624.0,0.00732064]
[1739893783002,0.157854,95630.0,95624.0,0.00732064]
[1739893783113,0.001,95630.0,95623.0,0.00061087]
[1739893783768,0.001,95630.0,95624.0,0.00732064]
[1739893784169,0.0009947,95649.0,95624.0,0.00732064]
[1739893784381,0.0009947,95649.0,95629.0,0.156854]
[1739893784382,0.156833,95643.0,95629.0,0.156854]
[1739893784587,0.15,95643.0,95630.0,0.156854]
[1739893784788,0.15,95643.0,95630.0,0.00730591]
[1739893784996,0.15,95643.0,95631.0,0.03431499]
[1739893785198,0.156839,95640.0,95625.0,0.0781]
[1739893785403,0.15,95643.0,95625.0,0.0781]
[1739893785404,0.14727757,95641.0,95632.0,0.00730101]
[1739893785610,0.15,95647.0,95625.0,0.0781]
[1739893785811,0.004,95643.0,95626.0,0.209148]
[1739893786006,0.004,95643.0,95627.0,0.03364589]
[1739893786238,0.15684,95639.0,95626.0,0.00731573]
[1739893786440,0.14727757,95640.0,95628.0,0.00731082]
[1739893786641,0.15027757,95640.0,95627.0,0.00731328]
[1739893786846,0.14727757,95640.0,95629.0,0.00730837]
[1739893787067,0.14727757,95640.0,95628.0,0.00731082]
[1739893787269,0.156848,95634.0,95630.0,0.00730591]
[1739893787468,0.156854,95630.0,95629.0,0.00730837]
[1739893787705,0.156854,95630.0,95625.0,0.0781]
[1739893787887,0.156854,95630.0,95623.0,0.00061087]
[1739893788062,0.156853,95631.0,95623.0,0.00061087]
[1739893788272,0.14727757,95640.0,95624.0,0.03102913]
[1739893788429,0.14727757,95640.0,95624.0,0.00732064]
[1739893788647,0.156841,95639.0,95623.0,0.00061087]
[1739893788879,0.14727757,95640.0,95625.0,0.20915]
[1739893789088,0.1509947,95649.0,95635.0,0.156844]
[1739893789295,0.207016,95648.0,95626.0,0.00731573]
[1739893789502,0.156835,95642.0,95636.0,0.00729119]
[1739893789718,0.1509947,95649.0,95623.0,0.00061087]
[1739893789921,0.209119,95639.0,95623.0,0.00061087]
[1739893790167,0.35639557,95640.0,95624.0,0.00732064]
[1739893790372,0.35639557,95640.0,95625.0,0.02966945]
[1739893790582,0.156846,95636.0,95625.0,0.02966945]
[1739893790830,0.156846,95636.0,95626.0,0.00731573]
[1739893790979,0.14727757,95640.0,95626.0,0.00731573]
[1739893791387,0.15,95646.0,95634.0,0.0791]
[1739893791592,0.15,95646.0,95634.0,0.1079245]
[1739893791793,0.15,95646.0,95635.0,0.00729364]
[1739893792211,0.1509947,95649.0,95635.0,0.00729364]
[1739893792439,0.156829,95646.0,95634.0,0.1079245]
[1739893792622,0.156829,95646.0,95635.0,0.00729364]
[1739893792820,0.15,95647.0,95635.0,0.03491534]
[1739893793024,0.2091,95648.0,95635.0,0.03491534]
[1739893793226,0.0009947,95649.0,95635.0,0.03491534]
[1739893793598,0.156832,95644.0,95635.0,0.03491534]
[1739893793804,0.156834,95643.0,95635.0,0.00729364]
[1739893793982,0.156833,95644.0,95634.0,0.0791]
[1739893794219,0.156833,95643.0,95634.0,0.0791]
[1739893794641,0.156839,95640.0,95635.0,0.00729364]
[1739893794852,0.156829,95646.0,95635.0,0.015933]
[1739893795031,0.0009947,95649.0,95635.0,0.00863936]
[1739893795286,0.0009947,95649.0,95636.0,0.00729119]
[1739893795716,0.358882,95648.0,95635.0,0.00863936]
[1739893795919,0.156827,95647.0,95637.0,0.00728873]
[1739893796125,0.2100917,95649.0,95636.0,0.00729119]
[1739893796126,0.0009947,95649.0,95636.0,0.00729119]
[1739893796331,0.310805,95648.0,95622.0,0.0471]
[1739893796536,0.156849,95634.0,95624.0,0.0752]
[1739893796740,0.14727757,95644.0,95624.0,0.08252064]
[1739893796943,0.156851,95632.0,95624.0,0.08252064]
[1739893797146,0.10250365,95643.0,95624.0,0.08252064]
[1739893797347,0.156845,95636.0,95624.0,0.08252064]
[1739893797573,0.156845,95636.0,95624.0,0.0752]
[1739893797783,0.156845,95636.0,95625.0,0.0365484]
[1739893797997,0.156845,95636.0,95625.0,0.00731935]
[1739893798205,0.209121,95639.0,95625.0,0.00731935]
[1739893798206,0.209115,95641.0,95625.0,0.00731935]
[1739893798417,0.156834,95642.0,95625.0,0.00731935]
[1739893798621,0.156838,95640.0,95625.0,0.00731935]
[1739893798827,0.156839,95639.0,95625.0,0.00731935]
[1739893799078,0.156844,95637.0,95625.0,0.02932872]
[1739893799278,0.156844,95637.0,95626.0,0.0073169]
[1739893799700,0.31161565,95643.0,95626.0,0.0073169]
[1739893799907,0.15684,95639.0,95626.0,0.0073169]
[1739893800322,0.14727757,95640.0,95626.0,0.0073169]
[1739893800527,0.156844,95637.0,95626.0,0.0073169]
[1739893800741,0.14727757,95640.0,95624.0,0.0752]
[1739893800990,0.14727757,95640.0,95627.0,0.00731445]
[1739893801210,0.15684,95639.0,95625.0,0.03058734]
[1739893801473,0.14727757,95640.0,95628.0,0.00731199]
[1739893801678,0.156843,95637.0,95626.0,0.0073169]
[1739893801889,0.14727757,95640.0,95626.0,0.0073169]
[1739893802123,0.01638655,95648.0,95627.0,0.03887003]
[1739893802333,0.156836,95642.0,95627.0,0.00731445]
[1739893802556,0.01638655,95648.0,95627.0,0.00731445]
[1739893802757,0.14727757,95640.0,95626.0,0.15686]
[1739893802976,0.20912,95639.0,95628.0,0.00731199]
[1739893803187,0.156857,95628.0,95627.0,0.00731445]
[1739893803405,0.156864,95624.0,95623.0,0.00061087]
[1739893804709,0.156864,95624.0,95623.0,0.00461087]
[1739893805187,0.43236765,95624.0,95623.0,0.00461087]
[1739893805399,0.329887,95610.0,95592.0,0.0789]
[1739893805611,3.43086265,95610.0,95584.0,0.0827]
[1739893805827,2.90039365,95610.0,95584.0,0.0827]
[1739893806054,2.84887765,95610.0,95584.0,0.0827]
[1739893806269,1.39192265,95610.0,95584.0,0.0827]
[1739893806484,0.92577965,95610.0,95584.0,0.0827]
[1739893807326,0.89008765,95610.0,95584.0,0.0827]
[1739893807786,0.89608765,95610.0,95584.0,0.0827]
[1739893809286,0.15692,95590.0,95584.0,0.0827]
[1739893809459,0.30692,95590.0,95589.0,0.00022583]
[1739893809663,0.32559936,95590.0,95589.0,0.00022583]
[1739893809908,1.20506001,95590.0,95589.0,0.00022583]
[1739893810117,1.23383001,95590.0,95589.0,0.00022583]
[1739893810595,0.306941,95577.0,95576.0,0.0001705]
[1739893810884,0.306941,95577.0,95576.0,0.00030262]
[1739893811444,0.442877,95577.0,95576.0,0.00030262]
[1739893811675,0.56838065,95577.0,95576.0,0.00030262]
[1739893812993,0.59272751,95577.0,95576.0,0.00030262]
[1739893813240,0.45679151,95577.0,95576.0,0.00030262]
[1739893813492,0.329943,95576.0,95575.0,0.0001703]
[1739893813763,3.61196965,95576.0,95575.0,0.0001703]
[1739893814033,1.01183665,95576.0,95575.0,0.0001703]
[1739893814237,0.5349503,95576.0,95575.0,0.0001703]
[1739893814491,0.5349503,95576.0,95573.0,1e-08]
[1739893814492,0.329946,95574.0,95573.0,1e-08]
[1739893814759,0.43244965,95574.0,95573.0,1e-08]
[1739893817504,0.43844965,95574.0,95573.0,1e-08]
[1739893818196,0.43244965,95574.0,95573.0,1e-08]
[1739893818618,0.43644965,95574.0,95573.0,1e-08]
[1739893819284,0.52568675,95574.0,95573.0,1e-08]
[1739893819716,0.43644965,95574.0,95573.0,1e-08]
[1739893821061,0.43244965,95574.0,95573.0,1e-08]
[1739893821275,0.309946,95574.0,95573.0,1e-08]
[1739893821721,0.306946,95574.0,95573.0,1e-08]
[1739893821930,0.310946,95574.0,95573.0,1e-08]
[1739893822362,0.306946,95574.0,95573.0,1e-08]
[1739893822801,0.309946,95574.0,95573.0,1e-08]
[1739893823051,0.153,95574.0,95573.0,1e-08]
[1739893823263,0.003,95574.0,95573.0,1e-08]
[1739893824124,0.003,95574.0,95573.0,0.08180001]
[1739893824987,0.15,95580.0,95573.0,0.08180001]
[1739893825429,0.003,95574.0,95573.0,0.08180001]
[1739893825621,0.156937,95580.0,95573.0,0.08180001]
[1739893825865,0.15,95580.0,95573.0,0.08180001]
[1739893826081,0.15,95576.0,95573.0,0.08280001]
[1739893826290,0.156946,95574.0,95573.0,0.08280001]
[1739893826501,0.156946,95574.0,95573.0,0.08297031]
[1739893827399,0.1572866,95574.0,95573.0,0.08197031]
[1739893828062,0.0003406,95574.0,95573.0,0.08197031]
[1739893828503,0.0003406,95574.0,95573.0,0.09511734]
[1739893829348,0.1572866,95574.0,95573.0,0.08197031]
[1739893829563,0.1572866,95574.0,94461.0,0.0017]
[1739893829781,0.02,95567.0,95560.0,0.156967]
[1739893829996,0.02,95566.0,95553.0,0.00013175]
[1739893830215,0.02,95559.0,95553.0,0.00013175]
[1739893830425,0.02,95554.0,95553.0,0.00013175]
[1739893831281,0.326979,95554.0,95553.0,0.00213175]
[1739893831672,0.326979,95554.0,95553.0,0.00013175]
[1739893832968,0.38771611,95554.0,95553.0,0.00013175]
[1739893833187,0.326979,95554.0,95553.0,0.00013175]
[1739893833436,0.42948265,95554.0,95553.0,0.00013175]
[1739893834099,0.42948265,95554.0,95553.0,0.00213175]
[1739893834329,0.43048265,95554.0,95553.0,0.00213175]
[1739893834547,0.42948265,95554.0,95553.0,0.00013175]
[1739893835248,0.17,95554.0,95553.0,0.08213175]
[1739893835726,0.17,95554.0,95553.0,0.13003175]
[1739893836157,0.17,95554.0,95553.0,0.08213175]
[1739893836793,0.15,95554.0,95553.0,0.08213175]
[1739893837459,0.02,95554.0,95553.0,0.08213175]
[1739893837679,0.33250093,95554.0,95553.0,0.08213175]
[1739893837896,0.33250093,95554.0,95553.0,0.08413175]
[1739893838453,0.31250093,95554.0,95553.0,0.08413175]
[1739893838672,0.33250093,95554.0,95553.0,0.08413175]
[1739893838880,0.31250093,95554.0,95553.0,0.08413175]
[1739893839078,0.33250093,95554.0,95553.0,0.08413175]
[1739893840649,0.33284193,95554.0,95553.0,0.08413175]
[1739893841233,0.48982093,95554.0,95553.0,0.08413175]
[1739893842170,0.33284193,95554.0,95553.0,0.08413175]
[1739893842415,0.33284193,95554.0,95553.0,0.08213175]
[1739893842826,0.33284193,95554.0,95553.0,0.08413175]
[1739893844742,0.48982093,95554.0,95553.0,0.08413175]
[1739893844955,0.33284193,95554.0,95553.0,0.08413175]
[1739893845385,0.48982093,95554.0,95553.0,0.08413175]
[1739893845822,0.33284193,95554.0,95553.0,0.00213175]
[1739893846034,0.48982093,95554.0,95553.0,0.00213175]
[1739893847399,0.48982093,95554.0,95553.0,0.00013175]
[1739893847822,0.48982093,95554.0,95553.0,0.00213175]
[1739893848706,0.58066322,95554.0,95553.0,0.00213175]
[1739893848921,0.58066322,95554.0,95553.0,0.00201978]
[1739893849142,0.74232458,95554.0,95553.0,0.00201978]
[1739893849816,0.74232458,95554.0,95553.0,1.978e-05]
[1739893850066,1.13978458,95554.0,95553.0,1.978e-05]
[1739893850279,4.59579286,95554.0,95553.0,0.00201978]
[1739893850491,3.72994658,95554.0,95553.0,0.00201978]
[1739893850706,3.54953258,95554.0,95553.0,1.978e-05]
[1739893851183,2.04285793,95554.0,95553.0,1.978e-05]
[1739893851397,1.87877193,95554.0,95553.0,1.978e-05]
[1739893852266,0.157012,95534.0,95533.0,0.0783]
[1739893852479,0.46951293,95534.0,95533.0,0.07837838]
[1739893852691,0.48951293,95534.0,95533.0,0.07837838]
[1739893852913,0.83479415,95534.0,95533.0,7.838e-05]
[1739893853138,0.02,95505.0,95493.0,0.0825]
[1739893853350,0.02,95502.0,95493.0,0.08294252]
[1739893853585,0.157066,95501.0,95493.0,0.08294252]
[1739893853834,0.02,95500.0,95493.0,0.08294252]
[1739893854466,0.02,95502.0,95493.0,0.08294252]
[1739893854690,0.1446522,95503.0,95494.0,0.10355073]
[1739893854901,0.1446522,95503.0,95494.0,0.00104708]
[1739893855125,0.02,95502.0,95493.0,0.08294252]
[1739893855363,0.00976137,95504.0,95493.0,0.08294252]
[1739893855589,0.02,95494.0,95493.0,0.08294252]
[1739893855806,0.33250093,95494.0,95493.0,0.08294252]
[1739893856532,0.31250093,95494.0,95493.0,0.08294252]
[1739893856963,0.31250093,95494.0,95493.0,0.18544617]
[1739893857385,0.31250093,95494.0,95493.0,0.08294252]
[1739893857810,0.33250093,95494.0,95493.0,0.08294252]
[1739893858225,0.33350093,95494.0,95493.0,0.08294252]
[1739893858452,0.33350093,95494.0,95493.0,0.00044252]
[1739893858663,0.35502769,95494.0,95493.0,0.00044252]
[1739893859151,0.35602769,95494.0,95493.0,0.00044252]
[1739893859360,0.36576004,95494.0,95493.0,0.00880677]
[1739893859573,0.36576004,95494.0,95493.0,0.00044252]
[1739893859781,0.32323328,95494.0,95493.0,0.00044252]
[1739893860458,0.32323328,95494.0,95493.0,0.18614617]
[1739893860890,0.32323328,95494.0,95493.0,0.19132406]
[1739893861104,0.31350093,95494.0,95493.0,0.08882041]
[1739893862486,0.33350093,95494.0,95493.0,0.08882041]
[1739893862700,0.33350093,95494.0,95493.0,0.00562041]
[1739893862919,0.33350093,95494.0,95493.0,0.00044252]
[1739893863132,0.31350093,95494.0,95493.0,0.00044252]
[1739893863348,0.33350093,95494.0,95493.0,0.00044252]
[1739893864639,0.33350093,95494.0,95493.0,0.00061272]
[1739893865283,0.34320883,95494.0,95493.0,0.00061272]
[1739893865514,0.43512351,95494.0,95493.0,0.00061272]
[1739893865732,1.99468851,95494.0,95493.0,0.00061272]
[1739893865950,0.157135,95460.0,95457.0,0.0001703]
[1739893866170,0.307137,95458.0,95457.0,0.0001703]
[1739893866390,0.39981779,95458.0,95457.0,0.000303]
[1739893866852,0.42240219,95458.0,95457.0,0.000303]
[1739893867071,0.17,95455.0,95454.0,0.1469051]
[1739893867287,1.042453,95455.0,95454.0,0.14703021]
[1739893867723,1.14495665,95455.0,95454.0,0.12479255]
[1739893867971,1.25369547,95455.0,95454.0,0.12479255]
[1739893868188,1.22842431,95455.0,95454.0,0.12479255]
[1739893868414,0.89391165,95455.0,95454.0,0.12479255]
[1739893868628,0.91691165,95455.0,95454.0,0.12479255]
[1739893868857,1.93228078,95455.0,95454.0,0.12479255]
[1739893869070,1.80685318,95455.0,95454.0,0.12479255]
[1739893870630,1.77591168,95455.0,95454.0,0.12479255]
[1739893871284,1.79891168,95455.0,95454.0,0.12479255]
[1739893871715,1.07365668,95455.0,95454.0,0.12479255]
[1739893872052,1.04835768,95455.0,95454.0,0.12479255]
[1739893872137,0.85332705,95455.0,95454.0,0.12479255]
[1739893872796,0.5932724,95455.0,95454.0,0.12479255]
[1739893873011,0.1751784,95455.0,95454.0,0.12479255]
[1739893873254,0.1951784,95455.0,95454.0,0.12479255]
[1739893873471,0.5354214,95455.0,95454.0,0.12479255]
[1739893873682,0.58245455,95455.0,95454.0,0.12479255]
[1739893873897,1.59599055,95455.0,95454.0,0.12479255]
[1739893874111,1.08290155,95455.0,95454.0,0.12479255]
[1739893874809,0.80474416,95455.0,95454.0,0.12479255]
[1739893875253,0.15714,95456.0,95454.0,0.12479255]
[1739893876125,0.15714,95456.0,95454.0,0.12496285]
[1739893876340,0.10250365,95455.0,95454.0,0.12496285]
[1739893877246,0.15714,95456.0,95454.0,0.12469765]
[1739893877474,0.377198,95421.0,95391.0,0.0002]
[1739893877694,0.377212,95412.0,95391.0,0.0002]
[1739893877913,0.157236,95398.0,95391.0,0.0002]
[1739893878135,1.66708093,95398.0,95391.0,0.0002]
[1739893878359,0.69945758,95398.0,95397.0,0.00061342]
[1739893878637,0.68509258,95398.0,95397.0,0.00061342]
[1739893878859,0.72922959,95398.0,95397.0,0.00061342]
[1739893879079,0.72123881,95398.0,95397.0,0.00061342]
[1739893879500,0.72123881,95398.0,95391.0,0.0002]
[1739893879501,0.157245,95392.0,95391.0,0.0002]
[1739893879728,0.28274865,95392.0,95391.0,0.0002879]
[1739893880175,0.43274865,95392.0,95391.0,0.0002879]
[1739893880642,0.10250365,95392.0,95391.0,0.0002879]
[1739893880888,0.20965,95397.0,95391.0,0.0002879]
[1739893881142,0.157244,95393.0,95391.0,0.0002879]
[1739893881852,0.35166876,95398.0,95391.0,0.0002879]
[1739893882064,0.35166876,95398.0,95392.0,0.0786]
[1739893882286,0.31250093,95398.0,95392.0,0.0786]
[1739893882500,0.31250093,95398.0,95393.0,0.00536363]
[1739893883134,0.31250093,95398.0,95392.0,0.0786]
[1739893883349,0.15724,95396.0,95394.0,0.00536198]
[1739893883566,0.31250093,95398.0,95392.0,0.0786]
[1739893884000,0.157238,95397.0,95392.0,0.0786]
[1739893884215,0.31250093,95398.0,95392.0,0.0786]
[1739893884977,0.31250093,95398.0,95393.0,0.00536363]
[1739893885403,0.31250093,95398.0,95394.0,0.157242]
[1739893885655,0.31250093,95398.0,95394.0,0.00543357]
[1739893885868,0.31250093,95398.0,95394.0,0.10793722]
[1739893886079,0.31250093,95398.0,95392.0,0.0786]
[1739893886307,0.31250093,95398.0,95395.0,0.00543026]
[1739893886524,0.31250093,95398.0,95392.0,0.0786]
[1739893887811,0.31250093,95398.0,95393.0,0.00543219]
[1739893888019,0.31250093,95398.0,95392.0,0.0786]
[1739893888233,0.31250093,95398.0,95393.0,0.00543219]
[1739893888450,0.31250093,95398.0,95392.0,0.0786]
[1739893888698,0.0096617,95397.0,95393.0,0.0001705]
[1739893889536,0.31250093,95398.0,95394.0,0.00543064]
[1739893890198,0.31250093,95398.0,95393.0,0.0001705]
[1739893890416,0.31250093,95398.0,95397.0,0.157237]
[1739893890623,0.02305187,95409.0,95394.0,0.10793429]
[1739893890857,0.02305187,95409.0,95398.0,0.157235]
[1739893891085,0.31250093,95411.0,95397.0,0.00542571]
[1739893891325,0.31250093,95411.0,95399.0,0.00542242]
[1739893891537,0.33584547,95411.0,95399.0,0.17590366]
[1739893891751,0.33584547,95411.0,95400.0,0.00542077]
[1739893891965,0.31250093,95411.0,95400.0,0.10792442]
[1739893892179,0.31250093,95411.0,95403.0,0.0463]
[1739893892415,0.31250093,95411.0,95408.0,0.0807]
[1739893892850,0.31250093,95411.0,95409.0,0.00540598]
[1739893893062,0.31250093,95411.0,95410.0,0.157216]